Cogmind - Beta 17 *** ADVENTURER MODE // 2026.07.14 @ 15:19:43 Player: Vidali Result: Destroyed by Y-45 Defender with Beam Rifle Performance ------------- Evolutions (1) 500 Regions Visited (2) 400 Robots Destroyed (35) 175 Value Destroyed (913) 913 Prototype IDs (1) 20 Alien Tech Used (0) 0 Bonus (7169) 7169 TOTAL SCORE: 9177 Bonus ------- High Alert Combat Kills 16 Follower Combat Kills 33 Prayed to X0-1V1 5000 Major X0-1V1 Interference 2150 Friendly Fire -30 Cogmind --------- Core Integrity 0/400 Matter 300/300 Energy 93/100 System Corruption 18% Temperature Hot (263) Movement Walking (190) Ox1 Location -9/Materials Parts ------- > --- POWER (1) -------- (None) > --- PROPULSION (3) --- Aluminum Leg > --- UTILITY (3) ------ Small Storage Unit Terrain Scanner X0-1V1's Piety Tracker > --- WEAPON (2) ------- Heavy Assault Rifle Heavy Assault Rifle > --- INVENTORY (8) ---- Improved Ion Engine Compact Wheel Improved Heat Sink Small Laser Mini Grenade Launcher Mining Laser Katana Peak State ------------ > --- POWER ------------ Ion Engine > --- PROPULSION ------- Aluminum Leg Aluminum Leg Improved Aluminum Leg > --- UTILITY ---------- Small Storage Unit Terrain Scanner X0-1V1's Piety Tracker > --- WEAPON ----------- Heavy Assault Rifle Heavy Assault Rifle > --- INVENTORY -------- Improved Ion Engine Compact Wheel Improved Heat Sink Small Laser Mini Grenade Launcher Mining Laser Katana [Rating: 25] Favorites ----------- Power Ion Engine Engine Ion Engine Propulsion Aluminum Leg Leg Aluminum Leg Wheel Compact Wheel Utility Small Storage Unit Device Terrain Scanner Storage Small Storage Unit Weapon Small Laser Energy Gun Small Laser Ballistic Gun Heavy Assault Rifle Launcher Grenade Launcher Special Weapon Mining Laser Build | -11 -10 -9 ------- Run | Yrd Mat Mat Slots Evolved 2 | . . 2 Power . | . . . Propulsion 1 | . . 1 Utility 1 | . . 1 Weapon . | . . . Parts Attached 21 | 6 5 10 Power 2 | 1 . 1 Engine 2 | 1 . 1 Core . | . . . Reactor . | . . . Propulsion 7 | 2 . 5 Treads . | . . . Leg 5 | 2 . 3 Wheel 2 | . . 2 Hover . | . . . Flight . | . . . Utility 4 | 1 2 1 Device 3 | . 2 1 Storage 1 | 1 . . Processor . | . . . Hackware . | . . . Protection . | . . . Artifact . | . . . Weapon 8 | 2 3 3 Energy Gun 2 | 2 . . Energy Cannon . | . . . Ballistic Gun 4 | . 1 3 Ballistic Cannon . | . . . Launcher 1 | . 1 . Special Weapon 1 | . 1 . Impact Weapon . | . . . Slashing Weapon . | . . . Piercing Weapon . | . . . Special Melee Weapon . | . . . Unidentified Prototypes 1 | . 1 . Parts Lost 10 | . . 10 Power 2 | . . 2 Propulsion 4 | . . 4 Utility 1 | . . 1 Weapon 3 | . . 3 Highest Loss Streak 3 | . . 3 To Critical Strikes . | . . . Average Backups 5 | 2 5 6 Power . | . 1 . Propulsion . | 1 1 . Utility . | . . 1 Weapon 2 | . 2 3 Tool/Special . | . . . Unused Backups 4 | . . 4 Power 1 | . . 1 Propulsion . | . . . Utility 1 | . . 1 Weapon 2 | . . 2 Tool/Special . | . . . Average Slot Usage (%) 91 | . 92 90 Engine 12 | . 14 10 Leg 26 | . 28 24 Wheel 1 | . . 2 Device 13 | . 7 21 Storage 12 | . 14 11 Energy Gun 11 | . 19 . Ballistic Gun 11 | . 5 18 Launcher 1 | . 1 1 Peak Build Rating 25 | 6 19 25 Average Rating 13 | 4 7 21 On Entrance 8 | . 6 19 Avg Prop Armor Cover (%) . | . . . Naked Turns . | . . . Heaviest Build 18 | 12 16 18 Greatest Support 33 | 20 20 33 Greatest Overweight (x) 2 | . . 2 Average Overweight (x) . | . . . Largest Inventory Capacity 8 | 8 8 8 Average Capacity 7 | 6 8 8 Most Carried 8 | 4 7 8 Average Carried 5 | 2 5 6 Final Capacity 8 | 8 8 8 Final Carried 7 | 3 7 7 Class Distribution -------------------- 75% | Mutant 24% | Scavenger-Mutant Dominant Class ---------------- Mutant | -10/Materials Scavenger-Mutant | -9/Materials Resources | -11 -10 -9 ----------- Run | Yrd Mat Mat Matter Collected 833 | 200 200 433 Remotely . | . . . Salvage Created 875 | . 391 484 Parts 64 | . 31 33 Haulers Intercepted . | . . . Recyclers Shooed . | . . . Parts Field Recycled . | . . . Retrieved Matter . | . . . Parts Self-Destructed . | . . . Prevented . | . . . Parts Restored . | . . . Kills | -11 -10 -9 ------- Run | Yrd Mat Mat Combat Hostiles Destroyed 28 | . 16 12 Guns 18 | . 9 9 AOE 9 | . 7 2 Classes Destroyed 6 | . 3 3 Operator 1 | . . 1 Watcher 6 | . 3 3 Swarmer 11 | . 9 2 Grunt 12 | . 7 5 Duelist 1 | . . 1 Sentry 4 | . . 4 Best Kill Streak 7 | . 7 3 Combat Bots Only 7 | . 7 3 Max Kills in Single Turn 3 | . 3 3 Gunslinging 1 | . 1 . Exploded 3 | . 3 2 Melee . | . . . Uniques/NPCs Destroyed . | . . . Combat | -11 -10 -9 -------- Run | Yrd Mat Mat Hostile Shots Fired 205 | . 58 147 Missed 52 | . 17 35 Hits 153 | . 41 112 Melee 5 | . . 5 Projectile 148 | . 41 107 Critical Strikes 4 | . 1 3 Damage Taken 1539 | . 314 1225 Core 479 | . 74 405 Absorbed by Shields . | . . . Ignored by Resistances 450 | . 97 353 Core Remaining (%) 85 | 100 70 . Volleys Fired 106 | . 40 66 Largest 2 | . 2 2 Hottest 100 | . 100 60 Shots Fired 184 | . 75 109 Gun 172 | . 68 104 Cannon . | . . . Launcher 8 | . 3 5 Special 4 | . 4 . Kinetic 106 | . 10 96 Thermal 70 | . 62 8 Explosive 8 | . 3 5 Electromagnetic . | . . . Robot Hit Streak 20 | . 20 19 Robot Miss Streak 2 | . 2 2 Penetration Max . | . . . Secondary Targets 2 | . 1 1 Max Gunslinging Chain 1 | . 1 1 Shots Hit Robots 137 | . 50 87 Core Hits 52 | . 28 24 Critical Kills . | . . . Critical Parts Destroyed . | . . . Critical Strikes . | . . . Melee Attacks . | . . . Impact . | . . . Slashing . | . . . Piercing . | . . . Sneak Attacks . | . . . Combat Hostiles . | . . . Follow-up Attacks . | . . . Damage Inflicted 2319 | . 1011 1308 Guns 1682 | . 556 1126 Cannons . | . . . Explosions 637 | . 455 182 Melee . | . . . Ramming . | . . . Kinetic 1111 | . 76 1035 Thermal 571 | . 480 91 Explosive 637 | . 455 182 Electromagnetic . | . . . Impact . | . . . Slashing . | . . . Piercing . | . . . Highest Corruption 18 | . . 18 Average Corruption 18 | . . 18 Corruption Purged . | . . . Corruption Blocked . | . . . Effects 6 | . . 6 Matter Fused 1 | . . 1 Heat Flow Errors 2 | . . 2 Energy Discharges 1 | . . 1 Weapon Failures 2 | . . 2 Overload Shots . | . . . Overflow Damage 34 | . 24 10 Projectiles . | . . . Explosions 34 | . 24 10 Melee . | . . . Knockbacks . | . . . Impact . | . . . Kinetic . | . . . Secondary . | . . . Self-Inflicted Damage 2 | . . 2 Shots 1 | . . 1 Rammed . | . . . Targets Rammed . | . . . Kicked . | . . . Crushed . | . . . Highest Temperature 329 | . 180 329 Average Temperature 122 | . 51 156 Received Heat Transfer 615 | . 141 474 Effects 5 | . . 5 Energy Bleed 2 | . . 2 Interference 1 | . . 1 Matter Decay 1 | . . 1 Damage (minor) 1 | . . 1 Siege Activations . | . . . Martial Activations . | . . . Shielding Activations . | . . . Robots Disrupted . | . . . Combat Hostiles . | . . . Robots Corrupted . | . . . Combat Hostiles . | . . . Parts Fried . | . . . Impact Corruptions . | . . . Robots Melted . | . . . Combat Hostiles . | . . . Parts Melted 3 | . 1 2 Heat Transferred 1275 | . 1075 200 Parts Sabotaged . | . . . Parts Stolen . | . . . Parts Stripped . | . . . Power Chain Reactions . | . . . Alert | -11 -10 -9 ------- Run | Yrd Mat Mat Maximum Alert Level 2 | . . 2 Low Security (%) 71 | 100 100 30 Level 1 19 | . . 48 Level 2 8 | . . 20 Level 3 . | . . . Level 4 . | . . . Level 5 . | . . . High Security . | . . . Max Security . | . . . Peak Influence 473 | . 175 473 Initial 13 | . . 13 Average 149 | . 84 252 Influence Increases 1280 | . 450 830 Destroy 0b10 Robot/C 620 | . 320 300 Destroy 0b10 Robot/NC 35 | . 15 20 Destroy Leader 132 | . 46 86 Allied During Kill 1 | . . 1 Successful Hack 13 | . 10 3 Disable Machine 27 | . . 27 Destroy Structure 42 | . 29 13 Lose Combat Pursuer 30 | . 30 . Miscellaneous 380 | . . 380 Influence Decreases 877 | . 412 465 Entered New Map 25 | . . 25 Time Decay 752 | . 412 340 Lost Part 100 | . . 100 Squads Dispatched . | . . . Investigation . | . . . Extermination . | . . . Reinforcement . | . . . Assault . | . . . Garrison . | . . . Intercept . | . . . Searches Triggered . | . . . Construction Impeded . | . . . Haulers Reinforced . | . . . Active Scanning Responses . | . . . Cargo Convoy Interrupts . | . . . Stealth | -11 -10 -9 --------- Run | Yrd Mat Mat Distress Signals 2 | . . 2 Communications Jammed . | . . . Distress Signals . | . . . Times Spotted 52 | . 23 29 Peak Tracking Total 6 | . 5 6 Tactical Retreats 2 | . 2 . Traps | -11 -10 -9 ------- Run | Yrd Mat Mat Traps Triggered 1 | . . 1 Indirectly . | . . . Trap Hack Attempts . | . . . Triggered . | . . . Disarmed . | . . . Reprogrammed . | . . . Reused . | . . . Traps Extracted . | . . . Installed . | . . . Triggered . | . . . Machines | -11 -10 -9 ---------- Run | Yrd Mat Mat Machines Disabled 3 | . . 3 Max in Single Turn 1 | . . 1 Machines Repaired . | . . . Machines Dismantled . | . . . Machines Sabotaged . | . . . Overloaded Fab Kills . | . . . Hacking | -11 -10 -9 --------- Run | Yrd Mat Mat Machines Accessed 11 | . 8 3 Terminals 11 | . 8 3 Fabricators . | . . . Repair Stations . | . . . Recycling Units . | . . . Scanalyzers . | . . . Garrison Access . | . . . Total Hacks 23 | . 15 8 Successful 13 | . 10 3 Failed 10 | . 5 5 Catastrophic . | . . . Database Lockouts . | . . . Manual 24 | . 16 8 Terminals 23 | . 15 8 Fabricators . | . . . Repair Stations . | . . . Recycling Units . | . . . Scanalyzers . | . . . Garrison Access . | . . . Terminal Hacks 2 | . 2 . Robot Analysis 2 | . 2 . Fabricator Hacks . | . . . Repair Station Hacks . | . . . Recycling Unit Hacks . | . . . Scanalyzer . | . . . Garrison Access Hacks . | . . . Unauthorized Hacks 11 | . 8 3 Terminals 11 | . 8 3 Botnet 5 | . 3 2 Skim 6 | . 5 1 Fabricators . | . . . Repair Stations . | . . . Recycling Units . | . . . Scanalyzers . | . . . Garrison Access . | . . . Data Cores Recovered . | . . . Used . | . . . Hacking Detections 7 | . 5 2 Full Trace Events . | . . . Feedback Events . | . . . Feedback Blocked . | . . . Robot Schematics Acquired . | . . . Robots Built . | . . . Authchips . | . . . Time . | . . . Total Robot Build Rating . | . . . Part Schematics Acquired . | . . . Parts Built . | . . . Authchips . | . . . Time . | . . . Total Part Build Rating . | . . . Part Studies Acquired . | . . . Parts Repaired . | . . . Time . | . . . Parts Recycled . | . . . Recycled Matter . | . . . Retrieved Matter . | . . . Retrieved Components . | . . . Parts Scanalyzed . | . . . Part Schematics Acquired . | . . . Parts Damaged . | . . . Bothacking | -11 -10 -9 ------------ Run | Yrd Mat Mat Used RIF Installer . | . . . Robots Hacked . | . . . Non-combat . | . . . Combat . | . . . Robot Hacks Applied . | . . . Relay Couplers Released . | . . . Fabnet Peak Effective % . | . . . Robots Rewired . | . . . Allies Hacked . | . . . Hacks Repelled . | . . . Allies | -11 -10 -9 -------- Run | Yrd Mat Mat Total Allies 1 | . . 1 Largest Group 1 | . . 1 Highest-Rated Group 57 | . . 57 Highest-Rated Ally 57 | . . 57 Total Orders . | . . . Ally Attacks 8 | . . 8 Total Damage 160 | . . 160 Kills 3 | . . 3 Allies Corrupted . | . . . Allies Melted . | . . . X0-1V1 Amusement Gains 27 | . 7 20 Good Acts 2 | . . 2 Bad Acts 10 | . 1 9 Intel | -11 -10 -9 ------- Run | Yrd Mat Mat Active Infowar (turns) 1103 | . 412 691 Terrain 1103 | . 412 691 Robot Analysis Total 2 | . 2 . Derelict Logs Recovered . | . . . Drone Launches . | . . . Drone Recoveries . | . . . Exploration | -11 -10 -9 ------------- Run | Yrd Mat Mat Turns Passed 1691 | 78 922 691 Spaces Moved 1045 | 60 599 386 Core 13 | 12 . 1 Treads . | . . . Legs 974 | 48 599 327 Wheels 58 | . . 58 Hover . | . . . Flight . | . . . Fastest Speed 50 | 50 120 90 Average Speed 117 | 106 120 115 Slowest Speed 150 | 120 120 150 Overloaded Moves . | . . . Propulsion Burnouts . | . . . Robots Hopped . | . . . Potential Cave-ins 4 | . . 4 Cave-ins Triggered . | . . . Exploration Rate (%) 51 | 4 97 54 Regions Visited 2 Branch Regions . Pre-discovered Areas . | . . . Known Exits Taken 1 | . 1 . Unknown Exits Taken 1 | 1 . . Scrap Searched . | . . . Spaces Dug 4 | . 4 . Terrain Destroyed 36 | . 26 10 Melee . | . . . Projectile 4 | . 4 . AOE 32 | . 22 10 Terrain Rammed . | . . . Walls Destroyed . | . . . Machines Disabled . | . . . Actions | -11 -10 -9 --------- Run | Yrd Mat Mat Total 1314 | 74 716 524 Wait 107 | . 63 44 Move 1043 | 59 598 386 Hop . | . . . Pick Up 24 | 9 6 9 Fast Attach 1 | . . 1 Attach 16 | 6 1 9 Detach . | . . . Swap 12 | . 7 5 Drop 3 | . 1 2 Fire 106 | . 40 66 Melee . | . . . Ram . | . . . Kick . | . . . Crush . | . . . Escape Stasis . | . . . Rewire 2 | . . 2 Trap . | . . . Miscellaneous . | . . . Route ------- -11/Scrapyard -10/Materials (discovered 5 exits: *Mat x3 / *Min / [*Sub]) -9/Materials (discovered 4 exits: *Mat x3 / *Min) History --------- Turn | Location | Event 49 | -11/Scrapyard | Discovered new exit (range 15) 79 | -11/Scrapyard | Entered Materials 173 | -10/Materials | Destroyed 7 combat bots 238 | -10/Materials | Discovered new exit (range 7) 312 | -10/Materials | Build established: Mutant 453 | -10/Materials | Discovered new exit (range 13) 572 | -10/Materials | Discovered new exit (range 15) 745 | -10/Materials | Discovered new exit (range 10) 790 | -10/Materials | Discovered new exit (range 4) 870 | -10/Materials | Identified exit to Materials 870 | -10/Materials | Identified exit to Mines 904 | -10/Materials | Learned Storage emergency access door positions 926 | -10/Materials | Learned location of 2 exits from Materials 939 | -10/Materials | Loaded intel: 13 trap records 944 | -10/Materials | Prayed at D.C.S.S. Altar Unit 945 | -10/Materials | Learned Materials stockpile data 947 | -10/Materials | X0-1V1 sent hostile S-10 Pest (x3) 1001 | -10/Materials | Entered another Materials area 1001 | -9/Materials | Evolved 2 slots: Propulsion x1, Utility x1 1002 | -9/Materials | Identified exit to Materials 1003 | -9/Materials | Identified exit to Mines 1017 | -9/Materials | X0-1V1 added 0b10 threat records associated with you (minor) 1053 | -9/Materials | X0-1V1 foreshadows a heat wave 1056 | -9/Materials | X0-1V1 vaporized surrounding terrain (radius 15) 1069 | -9/Materials | X0-1V1 sent allied Chaos Knight (x1) 1154 | -9/Materials | X0-1V1 sent you into danger 1180 | -9/Materials | Ambient heat levels rising (+10) 1195 | -9/Materials | Lost 3 parts (1p2n) 1242 | -9/Materials | X0-1V1 sent you into danger 1275 | -9/Materials | X0-1V1 rewrote Fedhas IFF filter 1278 | -9/Materials | Core integrity fell below 50% 1307 | -9/Materials | Ambient heat levels rising (+10) 1454 | -9/Materials | Ambient heat levels falling (-10) 1536 | -9/Materials | X0-1V1 added 0b10 threat records associated with you (major) 1559 | -9/Materials | Build established: Scavenger-Mutant 1595 | -9/Materials | System corruption reached 10% 1671 | -9/Materials | Ambient heat levels falling (-10) 1678 | -9/Materials | Core integrity fell below 20% 1692 | -9/Materials | Destroyed by Y-45 Defender with Beam Rifle Last Messages --------------- 01664_ System corrupted: Hvy. Assault Rifle jammed. 01667_ System corrupted: Heat flow error (+163). 01671_ ALERT: Sterilization system anomaly impacting ambient heat levels -10. 01671_ Ion Engine destroyed. 01674_ G-47 Trooper destroyed. 01674_ Aluminum Leg destroyed. 01674_ Imp. Aluminum Leg destroyed. 01675_ Acquired 6 matter. 01676_ System corrupted: Hvy. Assault Rifle jammed. 01677_ Acquired 3 matter. 01680_ Acquired 6 matter. 01685_ System corrupted: Heat flow error (+203). 01685_ G-34 Mercenary destroyed. 01686_ Acquired 6 matter. 01687_ Overheating: Energy bleed (-23). 01689_ Acquired 6 matter. 01692_ X0-1V1 bursts into laughter! Map ----- +----------------------------------------------------+ | ???????????????????????????????????#?????##???? ?? | | ?????????????????????????????????????????????????? | | ??????????????????????????????=? ????????????????? | | ??????????????????????????????????????????????"??? | | ????????????????????????#?????? ???????????????? ? | | ???????????????????????????????????????##????????? | | ?????????????????????????????????????????????????? | | ????????????????????????????? ??? ??#########????? | | ??????????????????? #########+####### ##+### | | ?????????????????? # | | ?????????????????? > # | | ?????????????????? # | | ?????????????????????#???######## ###" "## # | | ????????????????????????????????# #?#" |"! "## # | | ????????????????????????????????# #?#"""""""## % | | ?????????????????????????????####+############ | | ?????????????????????????????# #?# | | ??????????????? ??????????? ?# "" """ """ #?##### | | ?????????????????????????????# "Y """ """ #???# | | ????????????????????????#????# "" """ """ #???# " | | ?????????????????????????????# #???# " | | ????????????????? ???????????# =#?#?# " | | ????????????????????################+########??# | | ????????????????????# =% !%! % #?#???#??# " | | ????????????????????# Y=* [/[ #????????# " | | ????????????????????# [%@ % #????????# ? | | ????????????????????# g%###############????????# ? | | ????????????????????# *#??????????#?????????????? | | ????????????????????# #??????##????????????????? | | ????????????????????# #????????????????????????? | | ???????????????????? %?#????????????????#?????? | | ????????????????? ?% ?????? ?????????????????? | | ?????????????????? ????? ???? ????????? +??? | | ????????????????? ???? ?????????????? " ?? | | ????????????????#### ??????????????????? " " | | ???????????!???????###+##?????????????????? " " | | ??????????????????????????????????????????? " | | ??????????????????????????????????????????# """" | | ??????????????????????????????????????????# " | | ??????????????????????????????????????????" " | | ?????????????????????????????????????????#" " | | ?????????????????????????????????????????#" "# | | ?????????????????????????????????????????#" | | ?????????????????????????????????????????#" | | ????????????????????????????????????????# " % | | ?????????????????????????????????????????#" % % | | ?????????????????????????????????????????#" * # | | ????????????????????????????????????????? | | ?????????????????????????????????????????#""+" | | ??????????????????????????????????????????? | +----------------------------------------------------+ Best States ------------- Heat Dissipation 28 Energy Generation 10 Energy Capacity 250 Matter Stores 300 Matter Capacity 300 Sight Range 16 Terrain Scan Range 14 Terrain Scan Density 10 Resistance: KI 20 Resistance: TH 20 Resistance: EX 20 Resistance: EM 20 Resistance: I 20 Resistance: S 20 Resistance: P 20 Evasion (%) 55 Offensive Hacking 10 Item Schematics ----------------- None Robot Schematics ------------------ None Fabricated ------------ Nothing Repaired ---------- Nothing Studied --------- None Alien Tech Used ----------------- None Achievements -------------- Ghost 'Em Challenges ------------ None Game ------ Seed SurgeAssembledActivator Manual? 0 Play Time 00:27:24 Cumulative 270.4 hours Start 2026.07.14 @ 14:54:34 End 2026.07.14 @ 15:19:43 Sessions 1 Manual Loads 0 Difficulty Adventurer Special Mode None Game No. 162 Rogue 94 Adventurer 68 Explorer 0 Win Type - Total 13 Types 10/0/0/3/0/0/0/0/0/0 Lore% 68 Gallery% 63 Achievement% 38 Wizard Run 0 Options --------- Layout 2 ASCII 0 Keyboard 0 Movement Mouse Keybinds 0 Fullscreen 1 Font 32/SmallcapsGlow Map View 50x44 Zoom Use 0% Tactical HUD 1 Map Filters NONE Filters NONE Steam 1 RUN: 06769b9d-748e-4d74-9602-5a74219d8e12